[Event "Titled Tuesday Blitz April 12 Early 2022"]
[White "Winkels, Marcel"]
[Black "Samaganova, Aleksandra"]
[WhiteFideId "1003887"]
[BlackFideId "13800221"]
[WhiteElo "1900"]
[BlackElo "1859"]
[Result "0-1"]
[Round "09"]
[TimeControl "180+1"]
[Date "2022.04.13"]
[WhiteClock "0:00:24"]
[BlackClock "0:00:01"]

1. e4 {[%clk 0:03:00]}  c5 {[%clk 0:02:58]} 2. a3 {[%clk 0:02:58]}  e6 {[%clk 0:02:57]} 3. b4 {[%clk 0:02:58]}  b6 {[%clk 0:02:57]} 4. Nf3 {[%clk 0:02:55]}  Bb7 {[%clk 0:02:55]} 5. e5 {[%clk 0:02:38]}  cxb4 {[%clk 0:02:47]} 6. axb4 {[%clk 0:02:37]}  Bxb4 {[%clk 0:02:47]} 7. c3 {[%clk 0:02:36]}  Be7 {[%clk 0:02:44]} 8. d4 {[%clk 0:02:36]}  d6 {[%clk 0:02:43]} 9. Bf4 {[%clk 0:02:30]}  dxe5 {[%clk 0:02:34]} 10. Bxe5 {[%clk 0:02:30]}  Nf6 {[%clk 0:02:22]} 11. Bb5+ {[%clk 0:02:24]}  Nc6 {[%clk 0:01:25]} 12. Qa4 {[%clk 0:02:22]}  Qd7 {[%clk 0:01:12]} 13. O-O {[%clk 0:02:10]}  a6 {[%clk 0:01:07]} 14. Bd3 {[%clk 0:01:55]}  b5 {[%clk 0:00:59]} 15. Qc2 {[%clk 0:01:53]}  Rc8 {[%clk 0:00:54]} 16. Nbd2 {[%clk 0:01:40]}  h6 {[%clk 0:00:42]} 17. Bxf6 {[%clk 0:01:31]}  Bxf6 {[%clk 0:00:41]} 18. Ne4 {[%clk 0:01:31]}  Be7 {[%clk 0:00:26]} 19. Qe2 {[%clk 0:01:29]}  O-O {[%clk 0:00:23]} 20. Nfd2 {[%clk 0:01:21]}  Qc7 {[%clk 0:00:15]} 21. Nb3 {[%clk 0:01:19]}  b4 {[%clk 0:00:09]} 22. cxb4 {[%clk 0:01:16]}  Nxb4 {[%clk 0:00:07]} 23. Rfc1 {[%clk 0:01:15]}  Qb8 {[%clk 0:00:07]} 24. Bc4 {[%clk 0:01:05]}  Rfd8 {[%clk 0:00:06]} 25. Nec5 {[%clk 0:01:03]}  Bxc5 {[%clk 0:00:05]} 26. dxc5 {[%clk 0:01:01]}  Nd5 {[%clk 0:00:04]} 27. Rab1 {[%clk 0:00:53]}  Nf4 {[%clk 0:00:04]} 28. Qd2 {[%clk 0:00:45]}  Qe5 {[%clk 0:00:02]} 29. Qb4 {[%clk 0:00:40]}  Qg5 {[%clk 0:00:02]} 30. g3 {[%clk 0:00:38]}  Nh3+ {[%clk 0:00:01]} 31. Kf1 {[%clk 0:00:37]}  Bc6 {[%clk 0:00:01]} 32. Rd1 {[%clk 0:00:30]}  Qf5 {[%clk 0:00:02]} 33. Qc3 {[%clk 0:00:25]}  Rxd1+ {[%clk 0:00:01]} 34. Rxd1 {[%clk 0:00:24]}  Qxf2# {[%clk 0:00:01]} 0-1


[Site "https://www.chess.com"]

[Event "Titled Tuesday Blitz April 12 Early 2022"]
[White "Zhigalko, Sergei"]
[Black "Melikhov, Evgeny V."]
[WhiteFideId "13502956"]
[BlackFideId "4122046"]
[WhiteElo "2854"]
[BlackElo "2412"]
[Result "1-0"]
[Round "09"]
[TimeControl "180+1"]
[Date "2022.04.13"]
[WhiteClock "0:00:19"]
[BlackClock "0:00:53"]

1. e4 {[%clk 0:03:00]}  e5 {[%clk 0:02:58]} 2. Nf3 {[%clk 0:03:00]}  Nc6 {[%clk 0:02:58]} 3. Bc4 {[%clk 0:03:00]}  Nf6 {[%clk 0:02:58]} 4. d3 {[%clk 0:03:00]}  Be7 {[%clk 0:02:57]} 5. O-O {[%clk 0:03:00]}  d6 {[%clk 0:02:56]} 6. Nbd2 {[%clk 0:03:00]}  O-O {[%clk 0:02:56]} 7. c3 {[%clk 0:03:01]}  Na5 {[%clk 0:02:56]} 8. Bb5 {[%clk 0:02:53]}  a6 {[%clk 0:02:56]} 9. Ba4 {[%clk 0:02:53]}  b5 {[%clk 0:02:56]} 10. Bc2 {[%clk 0:02:53]}  c5 {[%clk 0:02:54]} 11. Re1 {[%clk 0:02:53]}  Bb7 {[%clk 0:02:54]} 12. Nf1 {[%clk 0:02:51]}  Re8 {[%clk 0:02:52]} 13. h3 {[%clk 0:02:44]}  Bf8 {[%clk 0:02:51]} 14. Bg5 {[%clk 0:02:43]}  h6 {[%clk 0:02:51]} 15. Bh4 {[%clk 0:02:44]}  g6 {[%clk 0:02:23]} 16. Ne3 {[%clk 0:02:36]}  Bg7 {[%clk 0:02:23]} 17. b4 {[%clk 0:02:28]}  cxb4 {[%clk 0:02:16]} 18. cxb4 {[%clk 0:02:28]}  Nc6 {[%clk 0:02:15]} 19. a3 {[%clk 0:02:26]}  a5 {[%clk 0:02:13]} 20. bxa5 {[%clk 0:02:10]}  Rxa5 {[%clk 0:02:08]} 21. Bb3 {[%clk 0:02:03]}  Qa8 {[%clk 0:02:00]} 22. Qc1 {[%clk 0:01:34]}  Nd4 {[%clk 0:01:33]} 23. Nxd4 {[%clk 0:01:06]}  exd4 {[%clk 0:01:33]} 24. Qc7 {[%clk 0:00:56]}  d5 {[%clk 0:01:24]} 25. Nxd5 {[%clk 0:00:41]}  Nxd5 {[%clk 0:01:23]} 26. exd5 {[%clk 0:00:30]}  Rxe1+ {[%clk 0:01:19]} 27. Rxe1 {[%clk 0:00:31]}  Rxa3 {[%clk 0:01:19]} 28. d6 {[%clk 0:00:24]}  Ra1 {[%clk 0:01:06]} 29. Qxf7+ {[%clk 0:00:20]}  Kh7 {[%clk 0:01:05]} 30. Rxa1 {[%clk 0:00:20]}  Qxa1+ {[%clk 0:01:04]} 31. Kh2 {[%clk 0:00:20]}  Qf1 {[%clk 0:00:53]} 32. Qg8# {[%clk 0:00:19]} 1-0


[Site "https://www.chess.com"]

[Event "Titled Tuesday Blitz April 12 Early 2022"]
[White "Aaditya Dhingra"]
[Black "Efremova, Yulia"]
[WhiteFideId "25678191"]
[BlackFideId "14113953"]
[WhiteElo "1849"]
[BlackElo "2107"]
[Result "0-1"]
[Round "10"]
[TimeControl "180+1"]
[Date "2022.04.13"]
[WhiteClock "0:00:02"]
[BlackClock "0:00:05"]

1. e4 {[%clk 0:03:00]}  d5 {[%clk 0:02:57]} 2. exd5 {[%clk 0:03:00]}  Qxd5 {[%clk 0:02:58]} 3. Nc3 {[%clk 0:02:59]}  Qa5 {[%clk 0:02:58]} 4. d4 {[%clk 0:02:57]}  Nf6 {[%clk 0:02:57]} 5. Bc4 {[%clk 0:02:57]}  Nc6 {[%clk 0:02:53]} 6. Ne2 {[%clk 0:02:54]}  Bf5 {[%clk 0:02:50]} 7. Bd2 {[%clk 0:02:48]}  O-O-O {[%clk 0:02:37]} 8. Nd5 {[%clk 0:02:37]}  Qa4 {[%clk 0:02:29]} 9. b3 {[%clk 0:02:29]}  Qa3 {[%clk 0:02:28]} 10. Bc1 {[%clk 0:02:27]}  Qa5+ {[%clk 0:02:18]} 11. Bd2 {[%clk 0:02:26]}  Qa3 {[%clk 0:02:18]} 12. Ne3 {[%clk 0:02:25]}  Be4 {[%clk 0:02:06]} 13. f3 {[%clk 0:02:18]}  Bd5 {[%clk 0:02:02]} 14. Nxd5 {[%clk 0:02:17]}  Nxd5 {[%clk 0:02:03]} 15. Bxd5 {[%clk 0:02:17]}  Rxd5 {[%clk 0:02:01]} 16. c4 {[%clk 0:02:18]}  Rd8 {[%clk 0:01:52]} 17. d5 {[%clk 0:02:18]}  Ne5 {[%clk 0:01:44]} 18. Bc3 {[%clk 0:02:15]}  Ng6 {[%clk 0:01:43]} 19. Qc1 {[%clk 0:02:05]}  Qd6 {[%clk 0:01:25]} 20. Qe3 {[%clk 0:02:02]}  b6 {[%clk 0:01:13]} 21. O-O {[%clk 0:01:52]}  Qd7 {[%clk 0:01:00]} 22. Nd4 {[%clk 0:01:47]}  Kb7 {[%clk 0:00:48]} 23. Nc6 {[%clk 0:01:45]}  Re8 {[%clk 0:00:48]} 24. a4 {[%clk 0:01:40]}  e6 {[%clk 0:00:47]} 25. Qd2 {[%clk 0:01:35]}  exd5 {[%clk 0:00:42]} 26. cxd5 {[%clk 0:01:34]}  Bc5+ {[%clk 0:00:38]} 27. Kh1 {[%clk 0:01:34]}  Be3 {[%clk 0:00:33]} 28. Qd1 {[%clk 0:01:10]}  Nf4 {[%clk 0:00:32]} 29. Ne5 {[%clk 0:00:41]}  Qxd5 {[%clk 0:00:28]} 30. g3 {[%clk 0:00:40]}  Qxd1 {[%clk 0:00:27]} 31. Raxd1 {[%clk 0:00:39]}  Ne6 {[%clk 0:00:22]} 32. Nxf7 {[%clk 0:00:38]}  Rhf8 {[%clk 0:00:22]} 33. Ne5 {[%clk 0:00:39]}  Nc5 {[%clk 0:00:20]} 34. Nd7 {[%clk 0:00:36]}  Rf7 {[%clk 0:00:18]} 35. Nxc5+ {[%clk 0:00:25]}  Bxc5 {[%clk 0:00:19]} 36. b4 {[%clk 0:00:24]}  Bd6 {[%clk 0:00:19]} 37. Rd3 {[%clk 0:00:19]}  Re2 {[%clk 0:00:18]} 38. f4 {[%clk 0:00:18]}  Rfe7 {[%clk 0:00:18]} 39. Rd2 {[%clk 0:00:17]}  g6 {[%clk 0:00:17]} 40. Rxe2 {[%clk 0:00:16]}  Rxe2 {[%clk 0:00:18]} 41. Re1 {[%clk 0:00:17]}  Rc2 {[%clk 0:00:17]} 42. Re3 {[%clk 0:00:16]}  c5 {[%clk 0:00:14]} 43. b5 {[%clk 0:00:16]}  Rc1+ {[%clk 0:00:13]} 44. Kg2 {[%clk 0:00:14]}  Rc2+ {[%clk 0:00:14]} 45. Kh3 {[%clk 0:00:13]}  c4 {[%clk 0:00:14]} 46. g4 {[%clk 0:00:12]}  Ra2 {[%clk 0:00:13]} 47. f5 {[%clk 0:00:11]}  gxf5 {[%clk 0:00:13]} 48. gxf5 {[%clk 0:00:12]}  Rxa4 {[%clk 0:00:12]} 49. f6 {[%clk 0:00:12]}  Kc7 {[%clk 0:00:12]} 50. f7 {[%clk 0:00:11]}  Kd7 {[%clk 0:00:12]} 51. Bg7 {[%clk 0:00:08]}  Rb4 {[%clk 0:00:10]} 52. f8=Q {[%clk 0:00:08]}  Bxf8 {[%clk 0:00:10]} 53. Bxf8 {[%clk 0:00:09]}  Rb3 {[%clk 0:00:11]} 54. Rxb3 {[%clk 0:00:07]}  cxb3 {[%clk 0:00:09]} 55. Ba3 {[%clk 0:00:07]}  Ke6 {[%clk 0:00:07]} 56. Kg4 {[%clk 0:00:07]}  Kd5 {[%clk 0:00:07]} 57. Kg5 {[%clk 0:00:05]}  Kc4 {[%clk 0:00:07]} 58. Kh6 {[%clk 0:00:05]}  Kxb5 {[%clk 0:00:07]} 59. Kxh7 {[%clk 0:00:05]}  Ka4 {[%clk 0:00:08]} 60. Bb2 {[%clk 0:00:05]}  a5 {[%clk 0:00:07]} 61. h4 {[%clk 0:00:05]}  Kb4 {[%clk 0:00:07]} 62. h5 {[%clk 0:00:04]}  a4 {[%clk 0:00:07]} 63. h6 {[%clk 0:00:03]}  a3 {[%clk 0:00:07]} 64. Bxa3+ {[%clk 0:00:02]}  Kxa3 {[%clk 0:00:08]} 65. Kg8 {[%clk 0:00:02]}  b2 {[%clk 0:00:08]} 66. h7 {[%clk 0:00:03]}  b1=Q {[%clk 0:00:08]} 67. h8=Q {[%clk 0:00:04]}  Qb3+ {[%clk 0:00:04]} 68. Kf8 {[%clk 0:00:03]}  Qb4+ {[%clk 0:00:04]} 69. Ke8 {[%clk 0:00:03]}  Qe4+ {[%clk 0:00:04]} 70. Kd7 {[%clk 0:00:02]}  Qb7+ {[%clk 0:00:04]} 71. Kd6 {[%clk 0:00:02]}  Qf3 {[%clk 0:00:05]} 0-1


[Site "https://www.chess.com"]

[Event "Titled Tuesday Blitz April 12 Early 2022"]
[White "Abdusattorov, Nodirbek"]
[Black "Bortnyk, Olexandr"]
[WhiteFideId "14204118"]
[BlackFideId "14120828"]
[WhiteElo "2663"]
[BlackElo "2723"]
[Result "1-0"]
[Round "10"]
[TimeControl "180+1"]
[Date "2022.04.12"]
[WhiteClock "0:00:08"]
[BlackClock "0:00:01"]

1. e4 {[%clk 0:03:00]}  d6 {[%clk 0:02:57]} 2. d4 {[%clk 0:03:00]}  Nf6 {[%clk 0:02:58]} 3. Nc3 {[%clk 0:03:00]}  e5 {[%clk 0:02:59]} 4. Nf3 {[%clk 0:03:00]}  Nbd7 {[%clk 0:02:59]} 5. Bc4 {[%clk 0:02:59]}  Be7 {[%clk 0:02:59]} 6. O-O {[%clk 0:02:59]}  c6 {[%clk 0:02:59]} 7. a4 {[%clk 0:03:00]}  h6 {[%clk 0:02:59]} 8. a5 {[%clk 0:02:58]}  Qc7 {[%clk 0:02:59]} 9. Re1 {[%clk 0:02:55]}  g5 {[%clk 0:02:47]} 10. d5 {[%clk 0:02:47]}  a6 {[%clk 0:02:01]} 11. Be3 {[%clk 0:02:40]}  c5 {[%clk 0:01:59]} 12. Nd2 {[%clk 0:02:38]}  Nf8 {[%clk 0:02:00]} 13. Na4 {[%clk 0:02:38]}  Ng6 {[%clk 0:01:56]} 14. Nb6 {[%clk 0:02:37]}  Rb8 {[%clk 0:01:57]} 15. b4 {[%clk 0:02:33]}  cxb4 {[%clk 0:01:55]} 16. Nxc8 {[%clk 0:02:32]}  Rxc8 {[%clk 0:01:52]} 17. Bb3 {[%clk 0:02:16]}  O-O {[%clk 0:01:44]} 18. Bb6 {[%clk 0:02:15]}  Qb8 {[%clk 0:01:38]} 19. Ra4 {[%clk 0:02:12]}  Bd8 {[%clk 0:01:39]} 20. Rxb4 {[%clk 0:02:10]}  Bxb6 {[%clk 0:01:37]} 21. Rxb6 {[%clk 0:02:10]}  Nd7 {[%clk 0:01:37]} 22. Rb4 {[%clk 0:02:09]}  Nc5 {[%clk 0:01:35]} 23. Nc4 {[%clk 0:02:06]}  Qc7 {[%clk 0:01:30]} 24. Rb6 {[%clk 0:02:00]}  Rcd8 {[%clk 0:01:28]} 25. Qh5 {[%clk 0:01:28]}  Kg7 {[%clk 0:01:19]} 26. Ne3 {[%clk 0:01:27]}  Ne7 {[%clk 0:01:19]} 27. h4 {[%clk 0:01:17]}  f6 {[%clk 0:01:14]} 28. Bc4 {[%clk 0:01:11]}  Rh8 {[%clk 0:00:51]} 29. Reb1 {[%clk 0:01:10]}  Qd7 {[%clk 0:00:46]} 30. Be2 {[%clk 0:01:10]}  Qa4 {[%clk 0:00:42]} 31. Bg4 {[%clk 0:00:55]}  Qe8 {[%clk 0:00:16]} 32. Nc4 {[%clk 0:00:56]}  Qxh5 {[%clk 0:00:15]} 33. Bxh5 {[%clk 0:00:57]}  Nc8 {[%clk 0:00:07]} 34. Rxb7+ {[%clk 0:00:54]}  Nxb7 {[%clk 0:00:08]} 35. Rxb7+ {[%clk 0:00:54]}  Kf8 {[%clk 0:00:08]} 36. Ne3 {[%clk 0:00:48]}  Ne7 {[%clk 0:00:07]} 37. Ra7 {[%clk 0:00:49]}  gxh4 {[%clk 0:00:03]} 38. Rxa6 {[%clk 0:00:49]}  Rg8 {[%clk 0:00:03]} 39. Ra7 {[%clk 0:00:45]}  Rg5 {[%clk 0:00:03]} 40. Bg4 {[%clk 0:00:43]}  Rg7 {[%clk 0:00:03]} 41. a6 {[%clk 0:00:29]}  f5 {[%clk 0:00:03]} 42. Bh3 {[%clk 0:00:26]}  fxe4 {[%clk 0:00:03]} 43. Rb7 {[%clk 0:00:26]}  Ng6 {[%clk 0:00:03]} 44. Rb6 {[%clk 0:00:27]}  Ra7 {[%clk 0:00:03]} 45. Nc4 {[%clk 0:00:25]}  Nf4 {[%clk 0:00:03]} 46. Nxd6 {[%clk 0:00:24]}  Nxd5 {[%clk 0:00:03]} 47. Rb7 {[%clk 0:00:21]}  Rxa6 {[%clk 0:00:02]} 48. Nxe4 {[%clk 0:00:20]}  Nf4 {[%clk 0:00:02]} 49. Kh2 {[%clk 0:00:20]}  Ra1 {[%clk 0:00:01]} 50. Bg4 {[%clk 0:00:18]}  h5 {[%clk 0:00:01]} 51. Bf3 {[%clk 0:00:18]}  Ra6 {[%clk 0:00:01]} 52. Rb5 {[%clk 0:00:18]}  Rg6 {[%clk 0:00:01]} 53. Rxe5 {[%clk 0:00:18]}  Ne6 {[%clk 0:00:02]} 54. Rxh5 {[%clk 0:00:18]}  Kg7 {[%clk 0:00:02]} 55. Rxh4 {[%clk 0:00:18]}  Nd4 {[%clk 0:00:03]} 56. Bg4 {[%clk 0:00:18]}  Nxc2 {[%clk 0:00:03]} 57. Ng3 {[%clk 0:00:18]}  Nd4 {[%clk 0:00:03]} 58. f3 {[%clk 0:00:18]}  Rh6 {[%clk 0:00:03]} 59. Nh5+ {[%clk 0:00:17]}  Kf7 {[%clk 0:00:03]} 60. Bh3 {[%clk 0:00:15]}  Rd5 {[%clk 0:00:03]} 61. Rf4+ {[%clk 0:00:15]}  Ke7 {[%clk 0:00:03]} 62. Ng3 {[%clk 0:00:16]}  Ke8 {[%clk 0:00:02]} 63. Re4+ {[%clk 0:00:16]}  Kf8 {[%clk 0:00:02]} 64. Kg1 {[%clk 0:00:15]}  Nc6 {[%clk 0:00:01]} 65. Ne2 {[%clk 0:00:14]}  Rf6 {[%clk 0:00:02]} 66. Nf4 {[%clk 0:00:14]}  Re5 {[%clk 0:00:02]} 67. Rc4 {[%clk 0:00:14]}  Ra5 {[%clk 0:00:02]} 68. Kh2 {[%clk 0:00:13]}  Ne5 {[%clk 0:00:02]} 69. Re4 {[%clk 0:00:13]}  Nf7 {[%clk 0:00:02]} 70. Ne6+ {[%clk 0:00:13]}  Kg8 {[%clk 0:00:02]} 71. Rg4+ {[%clk 0:00:14]}  Kh8 {[%clk 0:00:02]} 72. Rh4+ {[%clk 0:00:12]}  Kg8 {[%clk 0:00:03]} 73. Rd4 {[%clk 0:00:12]}  Ne5 {[%clk 0:00:02]} 74. Rd8+ {[%clk 0:00:10]}  Kf7 {[%clk 0:00:02]} 75. Nd4 {[%clk 0:00:08]}  Ra3 {[%clk 0:00:02]} 76. Kg3 {[%clk 0:00:08]}  Ng6 {[%clk 0:00:02]} 77. Nf5 {[%clk 0:00:08]}  Ne5 {[%clk 0:00:02]} 78. Kf4 {[%clk 0:00:08]}  Nc6 {[%clk 0:00:01]} 79. Rc8 {[%clk 0:00:08]} 1-0


[Site "https://www.chess.com"]

[Event "Titled Tuesday Blitz April 12 Early 2022"]
[White "Adelman, Charles"]
[Black "Khripachenko, Alexander"]
[WhiteFideId "2003597"]
[BlackFideId "54184975"]
[WhiteElo "2395"]
[BlackElo "2193"]
[Result "0-1"]
[Round "10"]
[TimeControl "180+1"]
[Date "2022.04.13"]
[WhiteClock "0:00:12"]
[BlackClock "0:00:06"]

1. Nf3 {[%clk 0:03:00]}  Nf6 {[%clk 0:02:59]} 2. c4 {[%clk 0:03:00]}  g6 {[%clk 0:02:59]} 3. Nc3 {[%clk 0:03:00]}  d5 {[%clk 0:02:59]} 4. cxd5 {[%clk 0:02:59]}  Nxd5 {[%clk 0:03:00]} 5. g3 {[%clk 0:03:00]}  Bg7 {[%clk 0:03:00]} 6. Bg2 {[%clk 0:03:00]}  Nb6 {[%clk 0:03:00]} 7. O-O {[%clk 0:02:59]}  O-O {[%clk 0:03:01]} 8. d3 {[%clk 0:02:59]}  Nc6 {[%clk 0:03:00]} 9. Be3 {[%clk 0:02:59]}  e5 {[%clk 0:03:00]} 10. Rc1 {[%clk 0:02:54]}  Nd4 {[%clk 0:03:00]} 11. Qd2 {[%clk 0:02:45]}  c6 {[%clk 0:03:01]} 12. Ne4 {[%clk 0:02:45]}  Re8 {[%clk 0:03:00]} 13. Nc5 {[%clk 0:02:43]}  Bg4 {[%clk 0:02:58]} 14. Bxd4 {[%clk 0:02:34]}  Bxf3 {[%clk 0:02:45]} 15. Bxf3 {[%clk 0:02:31]}  Qxd4 {[%clk 0:02:45]} 16. Nxb7 {[%clk 0:02:28]}  e4 {[%clk 0:02:45]} 17. e3 {[%clk 0:02:18]}  Qxb2 {[%clk 0:02:33]} 18. Rc2 {[%clk 0:02:13]}  Nc4 {[%clk 0:02:11]} 19. Rxb2 {[%clk 0:02:01]}  Nxd2 {[%clk 0:02:11]} 20. Rxd2 {[%clk 0:02:01]}  exf3 {[%clk 0:02:11]} 21. Rc1 {[%clk 0:01:51]}  Rab8 {[%clk 0:01:53]} 22. Nd6 {[%clk 0:01:49]}  Red8 {[%clk 0:01:51]} 23. Ne4 {[%clk 0:01:44]}  Rd5 {[%clk 0:01:50]} 24. h4 {[%clk 0:01:38]}  f5 {[%clk 0:01:47]} 25. Ng5 {[%clk 0:01:38]}  Rbd8 {[%clk 0:01:34]} 26. Nxf3 {[%clk 0:01:36]}  Rxd3 {[%clk 0:01:34]} 27. Rxd3 {[%clk 0:01:37]}  Rxd3 {[%clk 0:01:35]} 28. Rxc6 {[%clk 0:01:37]}  Ra3 {[%clk 0:01:35]} 29. Rc8+ {[%clk 0:01:31]}  Bf8 {[%clk 0:01:27]} 30. Ng5 {[%clk 0:01:30]}  Ra6 {[%clk 0:01:26]} 31. Rc7 {[%clk 0:01:25]}  h6 {[%clk 0:01:25]} 32. Nf7 {[%clk 0:01:15]}  Rxa2 {[%clk 0:01:20]} 33. Ne5 {[%clk 0:01:15]}  Ra6 {[%clk 0:01:20]} 34. Nc6 {[%clk 0:01:08]}  Ra1+ {[%clk 0:01:05]} 35. Kg2 {[%clk 0:01:07]}  a5 {[%clk 0:01:05]} 36. Ra7 {[%clk 0:00:56]}  a4 {[%clk 0:01:04]} 37. Ne5 {[%clk 0:00:55]}  g5 {[%clk 0:00:25]} 38. h5 {[%clk 0:00:55]}  Bg7 {[%clk 0:00:20]} 39. Nc4 {[%clk 0:00:38]}  Bf8 {[%clk 0:00:20]} 40. Ne5 {[%clk 0:00:36]}  a3 {[%clk 0:00:10]} 41. Ng6 {[%clk 0:00:35]}  Bc5 {[%clk 0:00:10]} 42. Ra5 {[%clk 0:00:28]}  a2 {[%clk 0:00:09]} 43. Rxc5 {[%clk 0:00:24]}  Rg1+ {[%clk 0:00:04]} 44. Kxg1 {[%clk 0:00:23]}  a1=Q+ {[%clk 0:00:05]} 45. Kg2 {[%clk 0:00:23]}  Qa8+ {[%clk 0:00:05]} 46. Kh2 {[%clk 0:00:20]}  Qf3 {[%clk 0:00:04]} 47. Rxf5 {[%clk 0:00:19]}  Qxh5+ {[%clk 0:00:03]} 48. Kg2 {[%clk 0:00:19]}  Qxg6 {[%clk 0:00:03]} 49. g4 {[%clk 0:00:17]}  h5 {[%clk 0:00:03]} 50. f3 {[%clk 0:00:15]}  h4 {[%clk 0:00:04]} 51. e4 {[%clk 0:00:15]}  Kg7 {[%clk 0:00:04]} 52. Rd5 {[%clk 0:00:14]}  Kh6 {[%clk 0:00:03]} 53. Rf5 {[%clk 0:00:15]}  Qe6 {[%clk 0:00:04]} 54. Rd5 {[%clk 0:00:15]}  Kg6 {[%clk 0:00:04]} 55. Rf5 {[%clk 0:00:15]}  Qc6 {[%clk 0:00:04]} 56. Rd5 {[%clk 0:00:15]}  Qc2+ {[%clk 0:00:05]} 57. Kg1 {[%clk 0:00:14]}  Qc1+ {[%clk 0:00:05]} 58. Kg2 {[%clk 0:00:14]}  Qe1 {[%clk 0:00:05]} 59. Rf5 {[%clk 0:00:13]}  Qg3+ {[%clk 0:00:05]} 60. Kf1 {[%clk 0:00:12]}  h3 {[%clk 0:00:06]} 0-1


[Site "https://www.chess.com"]

[Event "Titled Tuesday Blitz April 12 Early 2022"]
[White "Alinasab, Mobina"]
[Black "Kostina, Nadezhda"]
[WhiteFideId "12528897"]
[BlackFideId "4195876"]
[WhiteElo "2031"]
[BlackElo "1982"]
[Result "0-1"]
[Round "10"]
[TimeControl "180+1"]
[Date "2022.04.13"]
[WhiteClock "0:00:14"]
[BlackClock "0:00:21"]

1. e4 {[%clk 0:02:56]}  c5 {[%clk 0:02:59]} 2. Nf3 {[%clk 0:02:53]}  Nc6 {[%clk 0:02:59]} 3. d4 {[%clk 0:02:52]}  cxd4 {[%clk 0:02:59]} 4. Nxd4 {[%clk 0:02:53]}  d6 {[%clk 0:02:59]} 5. Nc3 {[%clk 0:02:45]}  Nf6 {[%clk 0:02:58]} 6. f3 {[%clk 0:02:31]}  Qb6 {[%clk 0:02:54]} 7. Nb3 {[%clk 0:02:27]}  e6 {[%clk 0:02:51]} 8. Bg5 {[%clk 0:02:19]}  Be7 {[%clk 0:02:48]} 9. Qd2 {[%clk 0:02:19]}  a6 {[%clk 0:02:45]} 10. Be3 {[%clk 0:02:12]}  Qc7 {[%clk 0:02:45]} 11. O-O-O {[%clk 0:02:10]}  b5 {[%clk 0:02:45]} 12. g4 {[%clk 0:02:10]}  b4 {[%clk 0:02:34]} 13. Ne2 {[%clk 0:01:58]}  d5 {[%clk 0:02:33]} 14. g5 {[%clk 0:01:46]}  Nh5 {[%clk 0:02:30]} 15. exd5 {[%clk 0:01:35]}  exd5 {[%clk 0:02:29]} 16. Nf4 {[%clk 0:01:29]}  Nxf4 {[%clk 0:01:50]} 17. Bxf4 {[%clk 0:01:30]}  Bd6 {[%clk 0:01:45]} 18. Bxd6 {[%clk 0:01:25]}  Qxd6 {[%clk 0:01:45]} 19. Qxd5 {[%clk 0:01:26]}  Qxd5 {[%clk 0:01:34]} 20. Rxd5 {[%clk 0:01:27]}  Be6 {[%clk 0:01:33]} 21. Rd6 {[%clk 0:01:22]}  Ne5 {[%clk 0:01:28]} 22. f4 {[%clk 0:01:20]}  Ng6 {[%clk 0:01:16]} 23. Rxa6 {[%clk 0:00:58]}  Rxa6 {[%clk 0:01:14]} 24. Bxa6 {[%clk 0:00:59]}  Nxf4 {[%clk 0:01:13]} 25. Rf1 {[%clk 0:00:59]}  Nh3 {[%clk 0:01:07]} 26. Nc5 {[%clk 0:00:30]}  Nxg5 {[%clk 0:01:03]} 27. Rf4 {[%clk 0:00:28]}  Ke7 {[%clk 0:00:55]} 28. Rxb4 {[%clk 0:00:28]}  Nf3 {[%clk 0:00:44]} 29. h4 {[%clk 0:00:24]}  Bd5 {[%clk 0:00:41]} 30. a4 {[%clk 0:00:21]}  Kd6 {[%clk 0:00:35]} 31. Nd3 {[%clk 0:00:18]}  Re8 {[%clk 0:00:31]} 32. Rf4 {[%clk 0:00:17]}  Re2 {[%clk 0:00:27]} 33. Bc4 {[%clk 0:00:15]}  Rh2 {[%clk 0:00:20]} 34. Bxd5 {[%clk 0:00:15]}  Rh1+ {[%clk 0:00:20]} 35. Ne1 {[%clk 0:00:14]}  Rxe1# {[%clk 0:00:21]} 0-1


[Site "https://www.chess.com"]